[Event "*** Titled Tuesday Blitz"]
[Site "Chess.com"]
[Date "2021.04.06"]
[Round "7"]
[White "ErikRonka"]
[Black "gahryman"]
[Result "0-1"]
[WhiteElo "2447"]
[BlackElo "2728"]
[TimeControl "180+1"]
[EndTime "11:17:58 PDT"]
[Termination "gahryman won by resignation"]

1. d4 {[%clk 0:03:00.9]} 1... Nf6 {[%clk 0:02:59.8]} 2. c4 {[%clk 0:03:00.8]}
2... g6 {[%clk 0:02:59.9]} 3. Nc3 {[%clk 0:03:01]} 3... Bg7 {[%clk 0:03:00.3]}
4. e4 {[%clk 0:03:00.2]} 4... d6 {[%clk 0:03:00.8]} 5. f3 {[%clk 0:03:00.3]}
5... O-O {[%clk 0:03:01.1]} 6. Be3 {[%clk 0:03:00.6]} 6... Nbd7 {[%clk
0:03:01.9]} 7. Nh3 {[%clk 0:03:00.6]} 7... c5 {[%clk 0:03:02.8]} 8. d5 {[%clk
0:03:00.8]} 8... a6 {[%clk 0:02:41.8]} 9. a4 {[%clk 0:03:00]} 9... Ne5 {[%clk
0:02:39.8]} 10. Nf2 {[%clk 0:02:58.8]} 10... e6 {[%clk 0:02:39.6]} 11. Be2
{[%clk 0:02:55.7]} 11... exd5 {[%clk 0:02:39.4]} 12. cxd5 {[%clk 0:02:55.5]}
12... Rb8 {[%clk 0:02:30.6]} 13. O-O {[%clk 0:02:48.7]} 13... Re8 {[%clk
0:02:15.2]} 14. f4 {[%clk 0:02:33.7]} 14... Ned7 {[%clk 0:02:14.8]} 15. Qc2
{[%clk 0:02:17.8]} 15... b6 {[%clk 0:02:13.6]} 16. Rae1 {[%clk 0:02:15.8]} 16...
Bb7 {[%clk 0:02:13.3]} 17. g4 {[%clk 0:01:43.1]} 17... Nxd5 {[%clk 0:02:02.3]}
18. Nxd5 {[%clk 0:01:34.3]} 18... Bxd5 {[%clk 0:02:02.1]} 19. Bxa6 {[%clk
0:01:29.1]} 19... Bc6 {[%clk 0:02:01.9]} 20. Rd1 {[%clk 0:01:11.3]} 20... Nf6
{[%clk 0:01:46.8]} 21. Bd3 {[%clk 0:00:54.7]} 21... d5 {[%clk 0:01:41.5]} 22. e5
{[%clk 0:00:53.3]} 22... Nd7 {[%clk 0:01:33.1]} 23. Bb5 {[%clk 0:00:47.8]} 23...
Bxb5 {[%clk 0:01:29.9]} 24. axb5 {[%clk 0:00:48.7]} 24... d4 {[%clk 0:01:29.8]}
25. Bxd4 {[%clk 0:00:29.6]} 25... cxd4 {[%clk 0:01:29.4]} 26. Rxd4 {[%clk
0:00:30.5]} 26... Qe7 {[%clk 0:01:20.8]} 27. Qc7 {[%clk 0:00:29.5]} 27... Nxe5
{[%clk 0:01:08.1]} 28. Qxe7 {[%clk 0:00:26.9]} 28... Nf3+ {[%clk 0:01:08.3]} 29.
Kg2 {[%clk 0:00:26.9]} 29... Rxe7 {[%clk 0:01:08.9]} 30. Re4 {[%clk 0:00:11.2]}
30... Rxe4 {[%clk 0:01:02.9]} 31. Nxe4 {[%clk 0:00:12.1]} 31... Nd4 {[%clk
0:01:03.4]} 32. f5 {[%clk 0:00:12.5]} 32... Re8 {[%clk 0:00:59.1]} 33. Nd6
{[%clk 0:00:11.3]} 33... Re2+ {[%clk 0:00:58.3]} 34. Kg1 {[%clk 0:00:11.6]}
34... Be5 {[%clk 0:00:55.3]} 35. Nc4 {[%clk 0:00:07.8]} 35... Bxh2+ {[%clk
0:00:53.9]} 36. Kh1 {[%clk 0:00:08.3]} 36... Bc7 {[%clk 0:00:54.5]} 37. fxg6
{[%clk 0:00:07.2]} 37... hxg6 {[%clk 0:00:54.4]} 38. Rd1 {[%clk 0:00:05.9]}
38... Nf3 {[%clk 0:00:52.2]} 0-1

[Event "*** Titled Tuesday Blitz"]
[Site "Chess.com"]
[Date "2021.04.06"]
[Round "7"]
[White "ApoIogiA"]
[Black "morte-negra"]
[Result "0-1"]
[WhiteElo "2176"]
[BlackElo "1959"]
[TimeControl "180+1"]
[EndTime "11:17:58 PDT"]
[Termination "morte-negra won by resignation"]

1. d4 {[%clk 0:02:36.8]} 1... Nf6 {[%clk 0:02:57.7]} 2. c4 {[%clk 0:02:36.5]}
2... c5 {[%clk 0:02:56.1]} 3. d5 {[%clk 0:02:35]} 3... e6 {[%clk 0:02:56.5]} 4.
Nc3 {[%clk 0:02:35]} 4... exd5 {[%clk 0:02:56.9]} 5. cxd5 {[%clk 0:02:35.9]}
5... d6 {[%clk 0:02:57.1]} 6. e4 {[%clk 0:02:36.8]} 6... g6 {[%clk 0:02:57.4]}
7. f3 {[%clk 0:02:37.7]} 7... Bg7 {[%clk 0:02:57.4]} 8. Nge2 {[%clk 0:02:35.1]}
8... O-O {[%clk 0:02:57.8]} 9. Ng3 {[%clk 0:02:35.3]} 9... h5 {[%clk 0:02:57]}
10. Be2 {[%clk 0:02:34.7]} 10... h4 {[%clk 0:02:55.6]} 11. Nf1 {[%clk
0:02:34.5]} 11... a6 {[%clk 0:02:53.1]} 12. a4 {[%clk 0:02:33.9]} 12... Nbd7
{[%clk 0:02:51.6]} 13. Be3 {[%clk 0:02:29.4]} 13... Rb8 {[%clk 0:02:46.5]} 14.
Nd2 {[%clk 0:02:26.3]} 14... Ne5 {[%clk 0:02:41.5]} 15. O-O {[%clk 0:02:23.4]}
15... Bd7 {[%clk 0:02:34.4]} 16. h3 {[%clk 0:02:06.3]} 16... b5 {[%clk
0:01:40.6]} 17. f4 {[%clk 0:01:46.5]} 17... Nc4 {[%clk 0:01:37.8]} 18. Bxc4
{[%clk 0:01:44.7]} 18... bxc4 {[%clk 0:01:37]} 19. Nxc4 {[%clk 0:01:45.1]} 19...
Qe7 {[%clk 0:01:31]} 20. Qc2 {[%clk 0:01:26.5]} 20... Nh5 {[%clk 0:01:28.1]} 21.
Rae1 {[%clk 0:01:21.5]} 21... Ng3 {[%clk 0:01:25.3]} 22. Rf3 {[%clk 0:01:16.5]}
22... Bxc3 {[%clk 0:01:19]} 23. Qxc3 {[%clk 0:01:10.5]} 23... Qxe4 {[%clk
0:01:11.9]} 24. Bf2 {[%clk 0:01:07.9]} 24... Qxd5 {[%clk 0:01:07.8]} 25. Rd3
{[%clk 0:00:41]} 25... Qh5 {[%clk 0:00:33.2]} 26. Rxd6 {[%clk 0:00:33.5]} 26...
Be6 {[%clk 0:00:27.4]} 27. Rexe6 {[%clk 0:00:15.3]} 27... fxe6 {[%clk
0:00:22.6]} 28. Rd7 {[%clk 0:00:15.4]} 28... Ne2+ {[%clk 0:00:21.2]} 29. Kf1
{[%clk 0:00:13.4]} 29... Nxc3 {[%clk 0:00:21.7]} 0-1

[Event "*** Titled Tuesday Blitz"]
[Site "Chess.com"]
[Date "2021.04.06"]
[Round "7"]
[White "ri4mi"]
[Black "HouseOfDurin"]
[Result "1-0"]
[WhiteElo "2350"]
[BlackElo "2161"]
[TimeControl "180+1"]
[EndTime "11:17:59 PDT"]
[Termination "ri4mi won on time"]

1. e4 {[%clk 0:03:00.9]} 1... c5 {[%clk 0:02:59.6]} 2. Nc3 {[%clk 0:03:00]} 2...
Nc6 {[%clk 0:03:00]} 3. Nf3 {[%clk 0:03:00.3]} 3... e5 {[%clk 0:03:00.4]} 4. Bc4
{[%clk 0:02:58.5]} 4... g6 {[%clk 0:02:59.9]} 5. O-O {[%clk 0:02:57.4]} 5... h6
{[%clk 0:02:58.7]} 6. d3 {[%clk 0:02:54]} 6... Bg7 {[%clk 0:02:59]} 7. Be3
{[%clk 0:02:54.4]} 7... d6 {[%clk 0:02:59.1]} 8. a4 {[%clk 0:02:48.1]} 8... a5
{[%clk 0:02:56.3]} 9. Nd5 {[%clk 0:02:39.5]} 9... Nge7 {[%clk 0:02:56.3]} 10.
Qd2 {[%clk 0:02:33.3]} 10... Be6 {[%clk 0:02:53.4]} 11. c3 {[%clk 0:02:25]}
11... f5 {[%clk 0:02:38.1]} 12. Nxe7 {[%clk 0:01:55.4]} 12... Qxe7 {[%clk
0:02:04.9]} 13. Bxe6 {[%clk 0:01:47.4]} 13... Qxe6 {[%clk 0:02:05.8]} 14. d4
{[%clk 0:01:37.8]} 14... cxd4 {[%clk 0:01:11.8]} 15. cxd4 {[%clk 0:01:37]} 15...
d5 {[%clk 0:01:11.5]} 16. exf5 {[%clk 0:01:18.1]} 16... Qxf5 {[%clk 0:00:53.9]}
17. dxe5 {[%clk 0:01:16.5]} 17... O-O-O {[%clk 0:00:52.8]} 18. Rfc1 {[%clk
0:01:11.1]} 18... Kb8 {[%clk 0:00:48.6]} 19. Rxc6 {[%clk 0:00:59.8]} 19... bxc6
{[%clk 0:00:47.8]} 20. Qxa5 {[%clk 0:00:59.9]} 20... Rd7 {[%clk 0:00:20.3]} 21.
Nd4 {[%clk 0:00:49.6]} 21... Qd3 {[%clk 0:00:06.6]} 22. Nxc6+ {[%clk 0:00:38.5]}
22... Kb7 {[%clk 0:00:05.8]} 23. Qb6+ {[%clk 0:00:32.3]} 23... Kc8 {[%clk
0:00:04.6]} 24. Na7+ {[%clk 0:00:27.6]} 24... Rxa7 {[%clk 0:00:01.4]} 25. Rc1+
{[%clk 0:00:26.5]} 1-0

[Event "*** Titled Tuesday Blitz"]
[Site "Chess.com"]
[Date "2021.04.06"]
[Round "7"]
[White "kikydu96"]
[Black "Trankuilizer"]
[Result "1-0"]
[WhiteElo "2448"]
[BlackElo "2571"]
[TimeControl "180+1"]
[EndTime "11:18:05 PDT"]
[Termination "kikydu96 won by resignation"]

1. e4 {[%clk 0:03:00.9]} 1... c5 {[%clk 0:02:59.7]} 2. Nf3 {[%clk 0:02:59.9]}
2... d6 {[%clk 0:03:00]} 3. d4 {[%clk 0:02:54.4]} 3... cxd4 {[%clk 0:03:00.9]}
4. Nxd4 {[%clk 0:02:54.8]} 4... Nf6 {[%clk 0:03:01.3]} 5. Nc3 {[%clk 0:02:53.7]}
5... a6 {[%clk 0:03:00.8]} 6. a3 {[%clk 0:02:52.1]} 6... e5 {[%clk 0:02:58.6]}
7. Nf5 {[%clk 0:02:51.6]} 7... Bxf5 {[%clk 0:02:58.2]} 8. exf5 {[%clk
0:02:52.5]} 8... d5 {[%clk 0:02:58.2]} 9. Bg5 {[%clk 0:02:53]} 9... d4 {[%clk
0:02:58.4]} 10. Bxf6 {[%clk 0:02:52.8]} 10... gxf6 {[%clk 0:02:58.2]} 11. Ne4
{[%clk 0:02:52.5]} 11... Nc6 {[%clk 0:02:56.2]} 12. Bd3 {[%clk 0:02:52.3]} 12...
Bg7 {[%clk 0:02:52.3]} 13. Qg4 {[%clk 0:02:49.1]} 13... Kf8 {[%clk 0:02:51.4]}
14. O-O {[%clk 0:02:47.7]} 14... h5 {[%clk 0:02:51]} 15. Qf3 {[%clk 0:02:43.9]}
15... Rc8 {[%clk 0:02:48.6]} 16. Rad1 {[%clk 0:02:44.1]} 16... Qb6 {[%clk
0:02:24.1]} 17. b4 {[%clk 0:02:42.1]} 17... a5 {[%clk 0:02:20.2]} 18. Nd6 {[%clk
0:02:32.7]} 18... Rd8 {[%clk 0:02:19.4]} 19. Nc4 {[%clk 0:02:32.9]} 19... Qc7
{[%clk 0:02:19.2]} 20. b5 {[%clk 0:02:31]} 20... Ne7 {[%clk 0:02:18.9]} 21. b6
{[%clk 0:02:26.9]} 21... Qc5 {[%clk 0:02:18.5]} 22. Qxb7 {[%clk 0:02:24.3]}
22... Bh6 {[%clk 0:02:02.7]} 23. Rb1 {[%clk 0:02:15.8]} 23... Kg7 {[%clk
0:01:27.9]} 24. Qa6 {[%clk 0:02:05.2]} 24... Nd5 {[%clk 0:00:38.1]} 25. Rb5
{[%clk 0:01:56]} 25... Qe7 {[%clk 0:00:35]} 26. b7 {[%clk 0:01:47.9]} 26... Nc7
{[%clk 0:00:28.7]} 27. Qc6 {[%clk 0:01:37.3]} 27... Nxb5 {[%clk 0:00:27.4]} 28.
Qxb5 {[%clk 0:01:38.2]} 28... e4 {[%clk 0:00:28]} 29. Re1 {[%clk 0:01:36.1]}
29... e3 {[%clk 0:00:26.6]} 30. fxe3 {[%clk 0:01:34.7]} 30... dxe3 {[%clk
0:00:27.5]} 31. Nxa5 {[%clk 0:01:32.5]} 31... Rd7 {[%clk 0:00:19.4]} 32. Nc6
{[%clk 0:01:31]} 32... Qd6 {[%clk 0:00:11.2]} 33. b8=Q {[%clk 0:01:29.3]} 33...
Rxb8 {[%clk 0:00:10.5]} 34. Nxb8 {[%clk 0:01:28.6]} 34... Rc7 {[%clk 0:00:10.4]}
35. Na6 {[%clk 0:01:28.1]} 35... Rc3 {[%clk 0:00:10.1]} 36. Qb4 {[%clk
0:01:25.4]} 36... Qe5 {[%clk 0:00:10.1]} 37. Re2 {[%clk 0:01:16.3]} 37... Rc8
{[%clk 0:00:08.5]} 38. g3 {[%clk 0:01:13.5]} 38... h4 {[%clk 0:00:03.2]} 39.
Qxh4 {[%clk 0:01:12]} 39... Qa1+ {[%clk 0:00:02.7]} 40. Kg2 {[%clk 0:01:12.3]}
40... Qxa3 {[%clk 0:00:03.6]} 41. Nb4 {[%clk 0:01:10.2]} 41... Qc3 {[%clk
0:00:02.7]} 42. Nd5 {[%clk 0:01:08.5]} 42... Qe5 {[%clk 0:00:03.6]} 43. Qg4+
{[%clk 0:01:05.8]} 43... Kf8 {[%clk 0:00:03.7]} 44. Qb4+ {[%clk 0:01:04.9]}
44... Kg7 {[%clk 0:00:03.7]} 45. Nf4 {[%clk 0:01:04.1]} 45... Bxf4 {[%clk
0:00:03.4]} 46. Qxf4 {[%clk 0:01:05]} 46... Qc3 {[%clk 0:00:01.8]} 47. Qxe3
{[%clk 0:01:04.4]} 1-0

[Event "*** Titled Tuesday Blitz"]
[Site "Chess.com"]
[Date "2021.04.06"]
[Round "7"]
[White "VladaSviridova"]
[Black "elegant285"]
[Result "0-1"]
[WhiteElo "2226"]
[BlackElo "2369"]
[TimeControl "180+1"]
[EndTime "11:18:05 PDT"]
[Termination "elegant285 won on time"]

1. d4 {[%clk 0:03:00.9]} 1... Nf6 {[%clk 0:03:00]} 2. c4 {[%clk 0:03:01.1]} 2...
e6 {[%clk 0:03:00.5]} 3. Nf3 {[%clk 0:03:00.7]} 3... Bb4+ {[%clk 0:03:00.9]} 4.
Bd2 {[%clk 0:03:00.8]} 4... Qe7 {[%clk 0:03:01.3]} 5. g3 {[%clk 0:03:01.1]} 5...
Nc6 {[%clk 0:03:01.8]} 6. Bg2 {[%clk 0:03:00.9]} 6... Bxd2+ {[%clk 0:03:02.4]}
7. Nbxd2 {[%clk 0:02:53.9]} 7... d6 {[%clk 0:03:02.6]} 8. O-O {[%clk 0:02:48.1]}
8... h5 {[%clk 0:03:03]} 9. e4 {[%clk 0:02:39.1]} 9... h4 {[%clk 0:03:00.1]} 10.
d5 {[%clk 0:02:28.4]} 10... Ne5 {[%clk 0:02:50.5]} 11. Nxh4 {[%clk 0:02:12.9]}
11... Rxh4 {[%clk 0:02:17.7]} 12. gxh4 {[%clk 0:02:12.2]} 12... Ng6 {[%clk
0:02:14.8]} 13. h5 {[%clk 0:01:55.2]} 13... Nf4 {[%clk 0:02:14.4]} 14. Bf3
{[%clk 0:01:38.8]} 14... Nd7 {[%clk 0:02:10.7]} 15. Kh1 {[%clk 0:01:35]} 15...
Ne5 {[%clk 0:02:09.8]} 16. Rg1 {[%clk 0:01:30.6]} 16... Kf8 {[%clk 0:02:10]} 17.
Rg3 {[%clk 0:01:21.3]} 17... exd5 {[%clk 0:02:05.2]} 18. cxd5 {[%clk 0:01:13.3]}
18... Qf6 {[%clk 0:02:03.8]} 19. Qg1 {[%clk 0:00:53.3]} 19... Ned3 {[%clk
0:01:55.5]} 20. Nc4 {[%clk 0:00:35.6]} 20... Nh3 {[%clk 0:01:50.3]} 21. Rxh3
{[%clk 0:00:31.2]} 21... Bxh3 {[%clk 0:01:51.2]} 22. Qg3 {[%clk 0:00:30.7]}
22... Bd7 {[%clk 0:01:46.5]} 23. Rg1 {[%clk 0:00:25.2]} 23... Re8 {[%clk
0:01:32.5]} 24. b3 {[%clk 0:00:24.6]} 24... b5 {[%clk 0:01:09]} 25. Ne3 {[%clk
0:00:23.9]} 25... Re5 {[%clk 0:00:58.8]} 26. h4 {[%clk 0:00:16]} 26... Rxe4
{[%clk 0:00:50.6]} 27. Bxe4 {[%clk 0:00:12.7]} 27... Nxf2+ {[%clk 0:00:51]} 28.
Kh2 {[%clk 0:00:11.4]} 28... Nxe4 {[%clk 0:00:51.2]} 29. Qg5 {[%clk 0:00:05.6]}
29... Nxg5 {[%clk 0:00:50.9]} 30. hxg5 {[%clk 0:00:04.3]} 30... Qf2+ {[%clk
0:00:49.5]} 31. Ng2 {[%clk 0:00:04.4]} 31... Qf3 {[%clk 0:00:46.7]} 32. Re1
{[%clk 0:00:03.7]} 32... Qxh5+ {[%clk 0:00:44.3]} 33. Kg1 {[%clk 0:00:03.3]}
33... Qxg5 {[%clk 0:00:44.6]} 34. Re3 {[%clk 0:00:02.5]} 34... c6 {[%clk
0:00:42.1]} 0-1

[Event "*** Titled Tuesday Blitz"]
[Site "Chess.com"]
[Date "2021.04.06"]
[Round "7"]
[White "Rytenko_V"]
[Black "Eliwood44"]
[Result "0-1"]
[WhiteElo "2374"]
[BlackElo "2516"]
[TimeControl "180+1"]
[EndTime "11:18:07 PDT"]
[Termination "Eliwood44 won by checkmate"]

1. d4 {[%clk 0:03:00.9]} 1... Nf6 {[%clk 0:02:46.2]} 2. c4 {[%clk 0:03:01.4]}
2... e6 {[%clk 0:02:41.4]} 3. Nc3 {[%clk 0:03:01.8]} 3... d5 {[%clk 0:02:41.1]}
4. Nf3 {[%clk 0:03:00.5]} 4... Be7 {[%clk 0:02:40.4]} 5. Bg5 {[%clk 0:02:59.2]}
5... Nbd7 {[%clk 0:02:39.5]} 6. e3 {[%clk 0:02:59.3]} 6... h6 {[%clk 0:02:39.5]}
7. Bh4 {[%clk 0:02:59.1]} 7... O-O {[%clk 0:02:39.9]} 8. Bd3 {[%clk 0:02:58.7]}
8... dxc4 {[%clk 0:02:38.5]} 9. Bxc4 {[%clk 0:02:59.6]} 9... c5 {[%clk
0:02:38.3]} 10. O-O {[%clk 0:02:59.3]} 10... cxd4 {[%clk 0:02:37.6]} 11. Nxd4
{[%clk 0:02:58.9]} 11... Nb6 {[%clk 0:02:31.1]} 12. Be2 {[%clk 0:02:53.6]} 12...
e5 {[%clk 0:02:31.2]} 13. Nf3 {[%clk 0:02:46]} 13... e4 {[%clk 0:02:30.9]} 14.
Nd4 {[%clk 0:02:42.9]} 14... Bd7 {[%clk 0:02:26.2]} 15. Bxf6 {[%clk 0:02:38.4]}
15... Bxf6 {[%clk 0:02:24.3]} 16. Nxe4 {[%clk 0:02:38.8]} 16... Be7 {[%clk
0:02:21.9]} 17. Rc1 {[%clk 0:02:29.6]} 17... Re8 {[%clk 0:02:21.7]} 18. Bf3
{[%clk 0:02:23.9]} 18... Ba4 {[%clk 0:02:16.8]} 19. b3 {[%clk 0:02:12.2]} 19...
Bd7 {[%clk 0:02:16.8]} 20. Nc5 {[%clk 0:02:11.3]} 20... Bc8 {[%clk 0:02:09.4]}
21. Qc2 {[%clk 0:02:01]} 21... Nd5 {[%clk 0:02:07.1]} 22. Rfd1 {[%clk
0:01:55.7]} 22... Nb4 {[%clk 0:02:02.9]} 23. Qc4 {[%clk 0:01:26.9]} 23... Qb6
{[%clk 0:01:57]} 24. Na4 {[%clk 0:00:57.7]} 24... Qa5 {[%clk 0:01:55.3]} 25. a3
{[%clk 0:00:54.8]} 25... Nc6 {[%clk 0:01:53.6]} 26. Nxc6 {[%clk 0:00:46.6]}
26... bxc6 {[%clk 0:01:53.4]} 27. Bxc6 {[%clk 0:00:42.7]} 27... Be6 {[%clk
0:01:53.4]} 28. Qe2 {[%clk 0:00:30.1]} 28... Bxb3 {[%clk 0:01:48.6]} 29. Bxa8
{[%clk 0:00:25.3]} 29... Rxa8 {[%clk 0:01:38.2]} 30. Nc3 {[%clk 0:00:10.7]}
30... Bxd1 {[%clk 0:01:37.8]} 31. Qxd1 {[%clk 0:00:10.7]} 31... Qxa3 {[%clk
0:01:35.9]} 32. Nd5 {[%clk 0:00:09.7]} 32... Bf8 {[%clk 0:01:33.3]} 33. Qc2
{[%clk 0:00:06.6]} 33... Rd8 {[%clk 0:01:30.8]} 34. e4 {[%clk 0:00:05.8]} 34...
a5 {[%clk 0:01:27.2]} 35. Rd1 {[%clk 0:00:05.9]} 35... Rb8 {[%clk 0:01:18.7]}
36. h3 {[%clk 0:00:03.8]} 36... a4 {[%clk 0:01:14.2]} 37. Qc7 {[%clk 0:00:02.9]}
37... Qb3 {[%clk 0:01:12.5]} 38. Re1 {[%clk 0:00:02]} 38... a3 {[%clk
0:01:12.4]} 39. Re3 {[%clk 0:00:02.2]} 39... Qb1+ {[%clk 0:01:10.2]} 40. Kh2
{[%clk 0:00:02.7]} 40... a2 {[%clk 0:01:08.1]} 41. Rf3 {[%clk 0:00:03.1]} 41...
a1=Q {[%clk 0:01:01.6]} 42. Qxf7+ {[%clk 0:00:02.8]} 42... Kh8 {[%clk
0:01:01.4]} 43. Rg3 {[%clk 0:00:03.4]} 43... Qh1# {[%clk 0:01:00.4]} 0-1

[Event "*** Titled Tuesday Blitz"]
[Site "Chess.com"]
[Date "2021.04.06"]
[Round "7"]
[White "catzapto"]
[Black "northridgehawk"]
[Result "0-1"]
[WhiteElo "2076"]
[BlackElo "2313"]
[TimeControl "180+1"]
[EndTime "11:18:07 PDT"]
[Termination "northridgehawk won on time"]

1. e4 {[%clk 0:03:00.9]} 1... e5 {[%clk 0:02:59.7]} 2. Nf3 {[%clk 0:03:01.2]}
2... Nc6 {[%clk 0:03:00.3]} 3. d4 {[%clk 0:03:02]} 3... exd4 {[%clk 0:03:01.2]}
4. Bc4 {[%clk 0:03:02.7]} 4... Nf6 {[%clk 0:03:01.5]} 5. e5 {[%clk 0:03:03.3]}
5... d5 {[%clk 0:03:01.9]} 6. Bb5 {[%clk 0:03:03.6]} 6... Ne4 {[%clk 0:03:02.7]}
7. Nxd4 {[%clk 0:03:04]} 7... Bd7 {[%clk 0:03:01.5]} 8. Bxc6 {[%clk 0:03:02.4]}
8... bxc6 {[%clk 0:03:02.4]} 9. O-O {[%clk 0:03:03]} 9... Bc5 {[%clk 0:03:02.9]}
10. Be3 {[%clk 0:02:59.6]} 10... Qe7 {[%clk 0:03:01.7]} 11. f3 {[%clk
0:02:59.6]} 11... Nd6 {[%clk 0:03:02.2]} 12. f4 {[%clk 0:02:33.2]} 12... Nc4
{[%clk 0:02:57.3]} 13. Bc1 {[%clk 0:02:18.9]} 13... O-O {[%clk 0:02:54.1]} 14.
b3 {[%clk 0:02:18.4]} 14... Nb6 {[%clk 0:02:43.9]} 15. Bb2 {[%clk 0:02:15.1]}
15... f6 {[%clk 0:02:41.1]} 16. exf6 {[%clk 0:01:37.4]} 16... Rxf6 {[%clk
0:02:42]} 17. Kh1 {[%clk 0:01:36.1]} 17... Raf8 {[%clk 0:02:37.2]} 18. g3 {[%clk
0:01:34.8]} 18... Rh6 {[%clk 0:02:15.1]} 19. Nd2 {[%clk 0:01:15.1]} 19... Re8
{[%clk 0:02:12.6]} 20. N4f3 {[%clk 0:01:12.4]} 20... Bg4 {[%clk 0:02:06.9]} 21.
Re1 {[%clk 0:01:02.8]} 21... Re6 {[%clk 0:02:05.5]} 22. Rxe6 {[%clk 0:01:00.9]}
22... Qxe6 {[%clk 0:02:06.4]} 23. Qe1 {[%clk 0:00:59.4]} 23... Qf7 {[%clk
0:02:05.6]} 24. Qf1 {[%clk 0:00:57.6]} 24... Nd7 {[%clk 0:02:03.8]} 25. Re1
{[%clk 0:00:56]} 25... Be3 {[%clk 0:01:59.3]} 26. Qd3 {[%clk 0:00:45.9]} 26...
Bb6 {[%clk 0:01:49.5]} 27. Rxe8+ {[%clk 0:00:43]} 27... Qxe8 {[%clk 0:01:50.4]}
28. Kg2 {[%clk 0:00:42]} 28... Nc5 {[%clk 0:01:48.7]} 29. Qc3 {[%clk 0:00:41.9]}
29... Qe2+ {[%clk 0:01:43.5]} 30. Kh1 {[%clk 0:00:37.2]} 30... Bxf3+ {[%clk
0:01:37.8]} 31. Nxf3 {[%clk 0:00:35.7]} 31... Ne6 {[%clk 0:01:17.5]} 32. Qd3
{[%clk 0:00:26.1]} 32... Qf2 {[%clk 0:01:08.2]} 33. f5 {[%clk 0:00:20.7]} 33...
Be3 {[%clk 0:00:55.6]} 34. Qd1 {[%clk 0:00:04.7]} 34... Nc5 {[%clk 0:00:55.3]}
35. Ng1 {[%clk 0:00:03.5]} 35... Ne4 {[%clk 0:00:53.2]} 36. Nh3 {[%clk
0:00:02.5]} 36... Qxf5 {[%clk 0:00:51]} 37. Qe2 {[%clk 0:00:01.4]} 37... Nxg3+
{[%clk 0:00:46.2]} 38. hxg3 {[%clk 0:00:01.4]} 38... Qxh3+ {[%clk 0:00:46.9]}
39. Qh2 {[%clk 0:00:01.2]} 39... Qf1+ {[%clk 0:00:46.8]} 0-1

[Event "*** Titled Tuesday Blitz"]
[Site "Chess.com"]
[Date "2021.04.06"]
[Round "7"]
[White "IANOV0007"]
[Black "DarZay"]
[Result "1/2-1/2"]
[WhiteElo "2466"]
[BlackElo "2215"]
[TimeControl "180+1"]
[EndTime "11:18:09 PDT"]
[Termination "Game drawn by repetition"]

1. Nf3 {[%clk 0:03:00.9]} 1... Nf6 {[%clk 0:02:59.3]} 2. g3 {[%clk 0:03:00]}
2... d5 {[%clk 0:02:59.4]} 3. Bg2 {[%clk 0:02:58.9]} 3... e6 {[%clk 0:02:59.7]}
4. O-O {[%clk 0:02:57.7]} 4... Be7 {[%clk 0:03:00]} 5. c4 {[%clk 0:02:57.7]}
5... O-O {[%clk 0:02:59.7]} 6. b3 {[%clk 0:02:57.8]} 6... c6 {[%clk 0:02:55.4]}
7. Bb2 {[%clk 0:02:57.6]} 7... Nbd7 {[%clk 0:02:54.9]} 8. d3 {[%clk 0:02:57.6]}
8... b6 {[%clk 0:02:53.6]} 9. Nbd2 {[%clk 0:02:57.6]} 9... Bb7 {[%clk
0:02:53.8]} 10. Qc2 {[%clk 0:02:57.6]} 10... c5 {[%clk 0:02:52.5]} 11. e4 {[%clk
0:02:56.1]} 11... d4 {[%clk 0:02:50.1]} 12. Rae1 {[%clk 0:02:54.5]} 12... e5
{[%clk 0:02:50.2]} 13. Nh4 {[%clk 0:02:52.5]} 13... g6 {[%clk 0:02:47.3]} 14.
Bc1 {[%clk 0:02:50.7]} 14... Ng4 {[%clk 0:02:45.6]} 15. h3 {[%clk 0:02:45.1]}
15... Bxh4 {[%clk 0:02:43.5]} 16. hxg4 {[%clk 0:02:44.6]} 16... Bg5 {[%clk
0:02:41.7]} 17. f4 {[%clk 0:02:41.4]} 17... exf4 {[%clk 0:02:41.2]} 18. gxf4
{[%clk 0:02:40.9]} 18... Bh4 {[%clk 0:02:41.5]} 19. Re2 {[%clk 0:02:41]} 19...
Nf6 {[%clk 0:02:41.4]} 20. Bf3 {[%clk 0:02:28]} 20... Bg3 {[%clk 0:02:38.2]} 21.
Nb1 {[%clk 0:02:25.4]} 21... h5 {[%clk 0:02:31.2]} 22. g5 {[%clk 0:02:23.4]}
22... Nh7 {[%clk 0:02:24.8]} 23. Rg2 {[%clk 0:02:22.7]} 23... h4 {[%clk
0:02:25.2]} 24. Bg4 {[%clk 0:02:13.4]} 24... f5 {[%clk 0:02:20.4]} 25. gxf6
{[%clk 0:02:10.3]} 25... Nxf6 {[%clk 0:02:19]} 26. Qe2 {[%clk 0:02:05.4]} 26...
Bc8 {[%clk 0:02:17.8]} 27. f5 {[%clk 0:02:01.9]} 27... gxf5 {[%clk 0:02:08.8]}
28. Bxf5 {[%clk 0:02:01.1]} 28... Qc7 {[%clk 0:01:52.1]} 29. Bf4 {[%clk
0:01:57.1]} 29... Qg7 {[%clk 0:01:49.5]} 30. Bxg3 {[%clk 0:01:55.9]} 30... hxg3
{[%clk 0:01:49.8]} 31. Qf3 {[%clk 0:01:42.7]} 31... Bxf5 {[%clk 0:01:47.9]} 32.
exf5 {[%clk 0:01:42.1]} 32... Kh7 {[%clk 0:01:12.1]} 33. Rxg3 {[%clk 0:01:34]}
33... Qxg3+ {[%clk 0:01:12.2]} 34. Qxg3 {[%clk 0:01:33.1]} 34... Rg8 {[%clk
0:01:12.4]} 35. Kh2 {[%clk 0:01:27.4]} 35... Rxg3 {[%clk 0:01:11.5]} 36. Kxg3
{[%clk 0:01:27.4]} 36... Re8 {[%clk 0:01:11]} 37. Nd2 {[%clk 0:01:22.4]} 37...
Re3+ {[%clk 0:00:58.3]} 38. Rf3 {[%clk 0:01:21]} 38... Re2 {[%clk 0:00:58.2]}
39. Nf1 {[%clk 0:01:04.6]} 39... Rxa2 {[%clk 0:00:56.3]} 40. Kf4 {[%clk
0:01:04.5]} 40... Re2 {[%clk 0:00:53.9]} 41. Ng3 {[%clk 0:00:54.7]} 41... Re1
{[%clk 0:00:48.7]} 42. Ne4 {[%clk 0:00:50.6]} 42... Kg7 {[%clk 0:00:48.8]} 43.
Rg3+ {[%clk 0:00:45.4]} 43... Kf7 {[%clk 0:00:49]} 44. Nxf6 {[%clk 0:00:44.8]}
44... Kxf6 {[%clk 0:00:49.2]} 45. Rg6+ {[%clk 0:00:44.6]} 45... Kf7 {[%clk
0:00:49.5]} 46. Rc6 {[%clk 0:00:43.8]} 46... Re3 {[%clk 0:00:45.6]} 47. Kg5
{[%clk 0:00:40.2]} 47... Rg3+ {[%clk 0:00:42.8]} 48. Kf4 {[%clk 0:00:40.1]}
48... Rxd3 {[%clk 0:00:42.6]} 49. Rc7+ {[%clk 0:00:39.5]} 49... Kf6 {[%clk
0:00:43]} 50. Rc6+ {[%clk 0:00:39.5]} 50... Kf7 {[%clk 0:00:42.9]} 51. Rc7+
{[%clk 0:00:38.6]} 51... Kf6 {[%clk 0:00:42.7]} 52. Rc6+ {[%clk 0:00:38.3]}
52... Kf7 {[%clk 0:00:43]} 1/2-1/2